Cogmind - Beta 16.1 @@@ ROGUE MODE // 2026.02.23 @ 21:43:36 Player: FrigidRock Result: Destroyed by D-63 Destroyer with Heavy Rocket Launcher Performance ------------- Evolutions (5) 2500 Regions Visited (20) 4000 Robots Destroyed (221) 1105 Value Destroyed (10820) 10820 Prototype IDs (32) 640 Alien Tech Used (0) 0 Bonus (13077) 13077 TOTAL SCORE: 32142 Bonus ------- High Alert Combat Kills 2298 Follower Combat Kills 6110 Entered Garrisons 1200 Used RIF Installer 3000 MAIN.C Attacked Warlord 500 Friendly Fire -31 Cogmind --------- Core Integrity 0/1000 Matter 300/300 Energy 99/100 System Corruption 0% Temperature Cool (0) Movement Core (50) Location -5/Warlord Parts ------- > --- POWER (1) -------- (None) > --- PROPULSION (5) --- (None) > --- UTILITY (6) ------ (None) > --- WEAPON (5) ------- (None) > --- INVENTORY (5) ---- Improved Medium Armor Plating Relay Coupler [Proto] (15) Relay Coupler [Proto] (15) Tesla Rifle Faulty Enhanced Coil Gun Peak State ------------ > --- POWER ------------ Meta Core > --- PROPULSION ------- Heavy Treads Heavy Treads Heavy Treads > --- UTILITY ---------- Huge Storage Unit Improved Sensor Array Advanced Signal Interpreter Experimental Targeting Computer Transmission Jammer Relay Coupler [Hunter] Relay Coupler [Behemoth] > --- WEAPON ----------- 1B-0RG's Assimilator Improved Remote Datajack > --- INVENTORY -------- Improved Deuterium Engine Antimatter Reactor Light Antimatter Reactor Improved Treads Experimental Heat Sink High-capacity Storage Unit Compact Matter Pod Particle Charger Improved Light Armor Plating Relay Coupler [Hunter] Tesla Rifle Flak Gun Improved KE Penetrator Enhanced Coil Gun Improved Remote Datajack Improved Remote Datajack Improved Plasma Cutter [Rating: 158] Favorites ----------- Power Meta Core Engine Ion Engine Power Core Meta Core Reactor Light Antimatter Reactor Propulsion Heavy Treads Treads Heavy Treads Leg Carbon-fiber Leg Wheel Wheel Hover Unit Gravmag System Utility High-capacity Storage Unit Device Improved Sensor Array Storage High-capacity Storage Unit Processor Experimental Targeting Computer Hackware Relay Coupler [Hunter] Protection Core Shielding Weapon 1B-0RG's Assimilator Energy Gun Heavy Particle Gun Energy Cannon Advanced Plasma Cannon Ballistic Gun High-powered Shotgun Ballistic Cannon Advanced Assault Cannon Launcher Rocket Launcher Special Weapon Improved Remote Datajack Special Melee Weapon 1B-0RG's Assimilator Build | -11 -10 -10 -8 -8 -8 -8 -8 -8 -7 -7 -6 -6 -5 -5 -5 -5 -5 -5 -5 -5 ------- Run | Yrd Mat Sub Mat Gar Mat Gar Mat Gar Fac Gar Fac Gar Fac Was Fac Gar Fac Upp Upp War Slots Evolved 10 | . . . 4 . . . . . 2 . 2 . 2 . . . . . . . Power . | . . . . . . . . . . . . . . . . . . . . . Propulsion 3 | . . . 2 . . . . . 1 . . . . . . . . . . . Utility 4 | . . . 1 . . . . . 1 . 2 . . . . . . . . . Weapon 3 | . . . 1 . . . . . . . . . 2 . . . . . . . Parts Attached 244 | 5 10 9 5 11 1 29 16 16 47 17 30 23 10 2 . 5 4 . 2 2 Power 23 | 1 2 1 1 1 . 3 1 3 6 1 . 1 2 . . . . . . . Engine 16 | 1 2 1 1 1 . 2 1 1 5 . . . 1 . . . . . . . Core 6 | . . . . . . 1 . 2 1 1 . . 1 . . . . . . . Reactor 1 | . . . . . . . . . . . . 1 . . . . . . . . Propulsion 79 | 2 2 2 2 7 . 7 3 9 17 3 7 11 5 1 . . 1 . . . Treads 22 | 2 2 2 2 . . . . 5 . 2 . . 5 1 . . 1 . . . Leg 49 | . . . . 7 . 7 3 . 13 1 7 11 . . . . . . . . Wheel 4 | . . . . . . . . . 4 . . . . . . . . . . . Hover 4 | . . . . . . . . 4 . . . . . . . . . . . . Flight . | . . . . . . . . . . . . . . . . . . . . . Utility 78 | . 3 2 . 1 . 8 6 1 11 9 14 8 2 1 . 5 3 . 2 2 Device 18 | . . 1 . . . 4 1 . 4 3 3 1 . 1 . . . . . . Storage 8 | . 2 . . . . . . . . . 3 . . . . 1 2 . . . Processor 7 | . . 1 . . . . . . 1 . 4 . 1 . . . . . . . Hackware 26 | . . . . . . 2 3 . 4 4 4 6 1 . . 2 . . . . Protection 19 | . 1 . . 1 . 2 2 1 2 2 . 1 . . . 2 1 . 2 2 Artifact . | . . . . . . . . . . . . . . . . . . . . . Weapon 64 | 2 3 4 2 2 1 11 6 3 13 4 9 3 1 . . . . . . . Energy Gun 22 | 2 1 1 2 . 1 3 1 1 5 1 3 1 . . . . . . . . Energy Cannon 3 | . . . . 1 . 1 . . . . 1 . . . . . . . . . Ballistic Gun 22 | . 2 2 . 1 . 2 4 1 2 2 5 1 . . . . . . . . Ballistic Cannon 8 | . . 1 . . . 2 . . 4 . . 1 . . . . . . . . Launcher 3 | . . . . . . 1 1 . 1 . . . . . . . . . . . Special Weapon 4 | . . . . . . 1 . 1 1 1 . . . . . . . . . . Impact Weapon . | . . . . . . . . . . . . . . . . . . . . . Slashing Weapon . | . . . . . . . . . . . . . . . . . . . . . Piercing Weapon . | . . . . . . . . . . . . . . . . . . . . . Special Melee Weapon 2 | . . . . . . 1 . . . . . . 1 . . . . . . . Unidentified Prototypes 11 | . . 1 . . 1 . . . 4 1 1 1 1 1 . . . . . . Corrupted Parts 5 | . . . . . . . . 4 1 . . . . . . . . . . . System Corruption 23 | . . . . . . . . 19 4 . . . . . . . . . . . Parts Lost 73 | . . 8 . 2 . 14 1 15 16 4 3 4 . . . . . . . 6 Power 6 | . . 1 . . . 1 . 2 1 . . 1 . . . . . . . . Propulsion 25 | . . 3 . . . 4 . 6 8 1 . 1 . . . . . . . 2 Utility 18 | . . . . . . 6 1 1 3 1 2 1 . . . . . . . 3 Weapon 24 | . . 4 . 2 . 3 . 6 4 2 1 1 . . . . . . . 1 Highest Loss Streak 9 | . . 6 . 2 . 6 1 5 9 2 1 1 . . . . . . . 6 To Critical Strikes 4 | . . 2 . . . . . 1 . . . 1 . . . . . . . . Average Backups 16 | 2 7 13 13 12 14 14 15 14 14 15 17 15 12 12 14 17 24 24 24 24 Power 1 | . 1 . . . . . 1 . . 1 1 . 1 2 3 3 3 3 3 3 Propulsion . | . 1 5 2 1 2 1 . . . . . . . 1 1 1 . . . . Utility 8 | . 2 6 6 5 5 6 6 6 6 8 8 9 8 7 6 6 13 15 15 15 Weapon 2 | . 1 1 3 4 4 3 3 2 2 1 4 1 1 1 2 4 4 3 3 3 Tool/Special . | . . . . . . . . . . . . . . . . . . . . . Unused Backups 46 | . 4 . 2 1 4 2 2 . 3 2 1 4 . . . 1 3 . . 17 Power 5 | . 2 . . . . . . . 1 1 . . . . . . . . . 1 Propulsion 3 | . 1 . . 1 1 . . . . . . . . . . . . . . . Utility 25 | . . . 2 . 1 2 2 . 2 1 1 3 . . . . 1 . . 10 Weapon 9 | . 1 . . . 2 . . . . . . 1 . . . . 2 . . 3 Tool/Special 4 | . . . . . . . . . . . . . . . . 1 . . . 3 Average Slot Usage (%) 82 | . 93 86 69 85 82 93 94 84 93 84 88 98 72 61 62 63 63 66 66 64 Engine 3 | . 14 11 6 5 6 4 4 1 5 4 . 2 . . . . . . . . Core 3 | . . . . . . 5 4 6 1 2 6 . 4 5 5 5 5 5 5 5 Treads 11 | . 28 23 25 12 . . . 6 9 11 9 . 11 15 15 15 15 16 16 15 Leg 12 | . . . . 19 33 34 36 3 18 12 13 32 10 . . . . . . . Hover 1 | . . . . . . . . 17 . . . . . . . . . . . . Device 6 | . . 1 . . . 6 7 . 11 14 15 11 9 5 7 6 5 5 5 4 Storage 8 | . 12 11 6 6 6 7 9 9 7 7 6 6 5 5 5 7 12 16 14 10 Processor 5 | . . 4 6 6 6 2 . . 3 . 9 6 9 10 10 10 10 11 11 11 Hackware 3 | . . . . . . 2 3 4 4 2 4 14 7 5 5 5 . . . . Protection 6 | . 9 10 6 12 13 6 4 11 1 4 1 . 3 5 5 5 8 5 6 10 Energy Gun 5 | . 12 9 10 9 3 16 6 2 7 5 4 2 . . . . . . . . Ballistic Gun 5 | . 15 12 . 1 2 2 13 10 4 6 9 9 . . . . . . . . Ballistic Cannon 2 | . . 1 6 6 6 . . 6 4 7 1 2 . . . . . . . . Special Melee Weapon 1 | . . . . . . 2 2 . 1 . . . 4 5 5 5 5 5 5 4 Peak Build Rating 158 | 5 8 32 38 59 61 71 49 49 60 77 92 79 149 157 155 158 154 144 145 145 Average Rating 79 | 4 7 17 35 49 57 52 42 37 44 67 81 73 137 147 151 152 150 144 143 142 On Entrance 77 | . 5 8 32 38 59 57 46 43 18 55 75 73 79 147 148 155 154 144 144 143 Avg Prop Armor Cover (%) 3 | . . . . 5 . . . 4 5 2 2 . . . . . . . . . Naked Turns . | . . . . . . . . . . . . . . . . . . . . . Heaviest Build 157 | 7 50 54 55 68 68 74 63 64 74 77 115 75 110 110 150 157 157 151 152 157 Greatest Support 210 | 40 40 40 80 80 80 80 60 80 87 150 150 87 191 210 210 210 210 167 167 167 Greatest Overweight (x) 18 | . 1 1 . 1 . 1 1 18 6 1 . 1 1 . . . 1 . . 2 Average Overweight (x) . | . . 1 . . . . . 1 . . . . . . . . . . . . Largest Inventory Capacity 25 | 5 20 20 20 20 20 20 20 20 20 20 25 20 20 20 25 25 25 25 25 25 Average Capacity 20 | 5 9 20 20 20 20 20 20 20 20 20 22 20 20 20 24 25 25 25 25 25 Most Carried 25 | 4 15 20 20 20 20 20 20 20 20 20 25 20 20 13 17 25 25 24 25 25 Average Carried 18 | 2 7 14 18 17 19 18 19 18 18 19 21 19 12 12 14 17 24 24 24 24 Final Capacity 25 | 5 20 20 20 20 20 20 20 20 20 20 20 20 20 20 25 25 25 25 25 5 Final Carried 25 | 4 15 20 18 19 20 20 17 17 20 20 20 20 12 13 17 25 24 24 25 5 Class Distribution -------------------- 21% | Mutant 17% | Botlord-Mutant 11% | Bothacker-Mutant 10% | Bothacker-Tank 10% | Scavenger-Tank 6% | Bothacker-Gunner 5% | Bothacker-Skirmisher 4% | Tank 3% | Scavenger-Gunner 3% | Scavenger-Mutant Dominant Class ---------------- Mutant | -10/Materials Mutant | -10/Subcaves Tank | -8/Materials Tank | -8/Garrison Scavenger-Mutant | -8/Materials Bothacker-Mutant | -8/Garrison Bothacker-Mutant | -8/Materials Scavenger-Tank | -8/Garrison Scavenger-Tank | -7/Factory Bothacker-Tank | -7/Garrison Bothacker-Skirmisher | -6/Factory Bothacker-Gunner | -6/Garrison Commander-Mutant | -5/Factory Mutant | -5/Waste Mutant | -5/Factory Mutant | -5/Garrison Botlord-Mutant | -5/Factory Botlord-Mutant | -5/Upper Caves Botlord-Mutant | -5/Upper Caves Botlord-Mutant | -5/Warlord Resources | -11 -10 -10 -8 -8 -8 -8 -8 -8 -7 -7 -6 -6 -5 -5 -5 -5 -5 -5 -5 -5 ----------- Run | Yrd Mat Sub Mat Gar Mat Gar Mat Gar Fac Gar Fac Gar Fac Was Fac Gar Fac Upp Upp War Matter Collected 15955 | 250 223 405 200 373 . 751 655 674 1675 1107 858 1338 294 55 459 1639 3351 616 866 166 Remotely . | . . . . . . . . . . . . . . . . . . . . . Salvage Created 8935 | 136 530 213 . 378 49 1164 842 789 1835 1259 836 900 . . . . 4 . . . Parts 467 | 6 47 16 . 24 2 57 50 40 92 51 32 49 . . . . 1 . . . Haulers Intercepted 4 | . 2 . . . 1 . . . . . 1 . . . . . . . . . Recyclers Shooed 10 | 1 3 . . . . . 1 . 2 . 2 . . . . . 1 . . . Parts Field Recycled . | . . . . . . . . . . . . . . . . . . . . . Retrieved Matter . | . . . . . . . . . . . . . . . . . . . . . Parts Self-Destructed 34 | . . 11 . . . . . . . . . . . . . . . 11 12 . Prevented 4 | . . . . . . . . . . . . . . . . . . . 4 . Parts Restored . | . . . . . . . . . . . . . . . . . . . . . Kills | -11 -10 -10 -8 -8 -8 -8 -8 -8 -7 -7 -6 -6 -5 -5 -5 -5 -5 -5 -5 -5 ------- Run | Yrd Mat Sub Mat Gar Mat Gar Mat Gar Fac Gar Fac Gar Fac Was Fac Gar Fac Upp Upp War Combat Hostiles Destroyed 183 | . 12 7 . 10 . 32 18 20 30 21 14 19 . . . . . . . . Guns 110 | . 10 7 . 4 . 19 12 6 17 12 9 14 . . . . . . . . Cannons 43 | . . . . 5 . 8 . 8 6 6 5 5 . . . . . . . . AOE 28 | . 2 . . . . 5 6 6 6 3 . . . . . . . . . . Classes Destroyed 19 | 2 6 1 . 1 . 3 2 . 2 1 . 1 . . . . . . . . Worker 10 | . 1 . . . . . 2 . 6 . . . . . . . 1 . . . Builder 5 | . 2 . . . . . 1 . 2 . . . . . . . . . . . Tunneler 3 | 2 1 . . . . . . . . . . . . . . . . . . . Hauler 4 | . 2 . . . 1 . . . . . 1 . . . . . . . . . Recycler 6 | 1 . . . . . . 1 . 3 . 1 . . . . . . . . . Mechanic 2 | . . . . . . . 1 . 1 . . . . . . . . . . . Operator 2 | . . . . . . . 1 . 1 . . . . . . . . . . . Watcher 5 | . 1 . . . . . 1 . . 1 2 . . . . . . . . . Swarmer 44 | . 7 3 . 3 . 10 4 . 3 7 4 3 . . . . . . . . Cutter 3 | . . . . . . . . . . 3 . . . . . . . . . . Grunt 78 | . 5 . . 3 . 13 10 12 14 10 5 6 . . . . . . . . Brawler 2 | . . . . . . 1 . . . . . 1 . . . . . . . . Duelist 5 | . . . . . . . . . 3 . . 2 . . . . . . . . Sentry 29 | . . . . 4 . 3 4 5 6 . 1 6 . . . . . . . . Specialist 4 | . . . . . . 4 . . . . . . . . . . . . . . Hunter 1 | . . . . . . . . . 1 . . . . . . . . . . . Programmer 13 | . . . . . . 2 . 3 3 1 4 . . . . . . . . . Executioner 1 | . . . . . . . . . . . . 1 . . . . . . . . Subdweller 4 | . . 4 . . . . . . . . . . . . . . . . . . Best Kill Streak 15 | 1 4 5 . 4 1 5 6 4 15 6 4 4 . . . . 1 . . . Combat Bots Only 8 | . 3 5 . 4 . 5 4 4 8 6 4 4 . . . . . . . . Max Kills in Single Turn 4 | 1 2 1 . 2 1 4 3 2 4 1 2 2 . . . . 1 . . . Gunslinging 1 | . 1 . . . . . . . . . 1 . . . . . . . . . Exploded 4 | . 1 . . . . 4 3 2 3 1 . . . . . . . . . . Melee . | . . . . . . . . . . . . . . . . . . . . . Uniques/NPCs Destroyed . | . . . . . . . . . . . . . . . . . . . . . Combat | -11 -10 -10 -8 -8 -8 -8 -8 -8 -7 -7 -6 -6 -5 -5 -5 -5 -5 -5 -5 -5 -------- Run | Yrd Mat Sub Mat Gar Mat Gar Mat Gar Fac Gar Fac Gar Fac Was Fac Gar Fac Upp Upp War Hostile Shots Fired 1463 | . 56 67 8 27 . 177 98 146 350 129 65 165 3 1 1 47 43 4 1 75 Missed 480 | . 18 9 1 7 . 47 38 51 117 45 24 58 2 . 1 15 18 1 . 28 Hits 983 | . 38 58 7 20 . 130 60 95 233 84 41 107 1 1 . 32 25 3 1 47 Melee 33 | . . . . . . 1 . . 12 6 . 10 . 1 . . . . . 3 Projectile 950 | . 38 58 7 20 . 129 60 95 221 78 41 97 1 . . 32 25 3 1 44 AOE 9 | . . . . . . . . 2 . 1 . . . . . . . . . 6 Critical Strikes 44 | . . 4 1 . . 9 3 9 6 2 1 4 . . . . 1 . . 4 Actively Blocked 3 | . . 1 1 . . 1 . . . . . . . . . . . . . . Part Disruptions 4 | . . . . . . . . 1 . . . . . . . . 1 . . 2 Damage Taken 17254 | . 348 1141 108 314 . 1847 909 1671 3209 1383 697 1725 69 39 33 694 1006 64 45 1952 Core 2502 | . 35 134 28 11 . 190 111 111 339 139 54 349 . . 14 216 246 . 30 495 Absorbed by Shields 212 | . . . . . . 67 . 9 . . . 68 . . . 68 . . . . Redirected to Shielding 158 | . . 29 7 2 . 14 . 25 . . . . . . . . . . . 81 Regen/Repaired (Parts) 860 | . . . . . . . 446 . . . . . . . . 163 105 35 . 111 Core Remaining (%) 46 | 100 . 32 . . . . . 18 . 31 . 52 . . . . . . . . Volleys Fired 765 | 10 54 33 . 41 2 96 53 60 130 127 56 83 14 . . 6 . . . . Largest 3 | 2 2 2 . 3 3 3 3 3 3 3 3 3 1 . . 1 . . . . Hottest 206 | 90 90 90 . 148 148 165 160 113 177 148 196 206 7 . . 7 . . . . Shots Fired 1509 | 20 109 60 . 81 5 193 112 130 268 210 131 170 14 . . 6 . . . . Gun 1099 | 20 109 59 . 51 2 159 96 84 173 147 92 107 . . . . . . . . Cannon 254 | . . 1 . 30 3 22 . 21 70 49 24 34 . . . . . . . . Launcher 63 | . . . . . . 9 16 23 8 7 . . . . . . . . . . Special 93 | . . . . . . 3 . 2 17 7 15 29 14 . . 6 . . . . Kinetic 767 | . 28 39 . 26 3 44 69 96 142 122 74 124 . . . . . . . . Thermal 426 | 10 42 21 . 8 2 137 26 . 72 74 24 10 . . . . . . . . Explosive 24 | . . . . . . 9 4 10 1 . . . . . . . . . . . Electromagnetic 199 | 10 39 . . 47 . . 13 22 36 7 18 7 . . . . . . . . Robot Hit Streak 54 | 2 9 15 . 10 3 16 9 16 18 54 18 19 21 . . 10 . . . . Robot Miss Streak 21 | 4 4 2 . 3 1 3 21 7 4 13 8 3 2 . . . . . . . Penetration Max 1 | . . . . . . 1 . . 1 . . . . . . . . . . . Secondary Targets 11 | . 1 1 . . . 4 . 1 . 3 1 . . . . . . . . . Max Gunslinging Chain 1 | . 1 1 . . . 1 . 1 . 1 1 . . . . . . . . . Shots Hit Robots 982 | 10 65 43 . 44 3 133 64 84 184 131 83 122 10 . . 6 . . . . Core Hits 551 | 4 27 15 . 25 1 61 47 44 107 114 43 61 . . . 1 1 . . . Critical Kills 2 | . . . . 1 . . 1 . . . . . . . . . . . . . Critical Parts Destroyed 1 | . . . . . . . . 1 . . . . . . . . . . . . Critical Strikes 33 | . 2 4 . 3 . 5 2 4 7 1 5 . . . . . . . . . Burn 16 | . 2 4 . . . 5 1 . 2 . 2 . . . . . . . . . Meltdown 1 | . . . . 1 . . . . . . . . . . . . . . . . Destroy 2 | . . . . . . . 1 1 . . . . . . . . . . . . Blast 10 | . . . . 2 . . . 3 3 1 1 . . . . . . . . . Corrupt 4 | . . . . . . . . . 2 . 2 . . . . . . . . . Melee Attacks 27 | . . . . . . 6 9 . 12 . . . . . . . . . . . Impact . | . . . . . . . . . . . . . . . . . . . . . Slashing . | . . . . . . . . . . . . . . . . . . . . . Piercing . | . . . . . . . . . . . . . . . . . . . . . Sneak Attacks 21 | . . . . . . 6 4 . 11 . . . . . . . . . . . Combat Hostiles . | . . . . . . . . . . . . . . . . . . . . . Follow-up Attacks . | . . . . . . . . . . . . . . . . . . . . . Damage Inflicted 22447 | 128 1052 663 . 896 58 3467 1800 2473 4182 3321 1877 2437 . . 14 18 61 . . . Guns 14398 | 128 910 663 . 389 38 2118 975 1109 2467 2565 1346 1690 . . . . . . . . Cannons 4082 | . . . . 450 20 457 . 473 933 471 531 747 . . . . . . . . Explosions 3874 | . 142 . . 57 . 892 825 891 782 285 . . . . . . . . . . Melee . | . . . . . . . . . . . . . . . . . . . . . Ramming 93 | . . . . . . . . . . . . . . . 14 18 61 . . . Kinetic 10638 | . 178 481 . 380 41 856 625 1519 2023 1169 1159 2207 . . . . . . . . Thermal 6777 | 63 479 182 . 178 17 1719 451 . 1149 1867 529 143 . . . . . . . . Explosive 1431 | . . . . . . 892 172 330 37 . . . . . . . . . . . Electromagnetic 3508 | 65 395 . . 338 . . 552 624 973 285 189 87 . . . . . . . . Impact . | . . . . . . . . . . . . . . . . . . . . . Slashing . | . . . . . . . . . . . . . . . . . . . . . Piercing . | . . . . . . . . . . . . . . . . . . . . . Highest Corruption 38 | . 1 1 . . . . . 22 7 10 1 1 . 32 32 32 35 35 35 38 Average Corruption 16 | . 1 1 . . . . . 5 3 8 1 1 . 19 32 32 33 35 35 37 Corruption Purged . | . . . . . . . . . . . . . . . . . . . . . Corruption Blocked . | . . . . . . . . . . . . . . . . . . . . . Effects 464 | . 4 8 . . . . . 34 26 63 1 15 . 22 46 62 96 27 48 12 Message Errors 116 | . . . . . . . . 9 8 11 . 4 . 8 17 18 21 7 8 5 Matter Fused 114 | . 1 3 . . . . . 13 5 11 1 5 . 5 9 16 19 7 15 4 Heat Flow Errors 50 | . . . . . . . . 4 2 9 . 1 . 1 5 6 14 3 4 1 Energy Discharges 59 | . . 1 . . . . . . 7 7 . . . 5 4 6 13 4 11 1 Parts Rejected 6 | . . . . . . . . . 1 1 . . . 1 . 1 2 . . . Parts Fused 10 | . 1 1 . . . . . 1 1 1 . . . . 1 . 3 . 1 . Data Loss (minor) 48 | . 1 . . . . . . 4 1 6 . 1 . . 6 5 13 3 7 1 Data Loss (major) 18 | . . 1 . . . . . . 1 1 . 2 . . 1 2 7 1 2 . Misfires 10 | . 1 2 . . . . . 2 . 4 . 1 . . . . . . . . Alerts 12 | . . . . . . . . 1 . 4 . 1 . 1 2 1 1 1 . . Misdirections 15 | . . . . . . . . . . 2 . . . 1 1 7 3 1 . . Weapon Failures 6 | . . . . . . . . . . 6 . . . . . . . . . . Overload Shots . | . . . . . . . . . . . . . . . . . . . . . Overflow Damage 201 | . . . . . . 42 . 61 49 15 34 . . . . . . . . . Projectiles 94 | . . . . . . 17 . . 28 15 34 . . . . . . . . . Explosions 107 | . . . . . . 25 . 61 21 . . . . . . . . . . . Melee . | . . . . . . . . . . . . . . . . . . . . . Knockbacks 25 | . . . . . . 1 . 3 9 5 1 6 . . . . . . . . Impact . | . . . . . . . . . . . . . . . . . . . . . Kinetic 22 | . . . . . . . . 3 7 5 1 6 . . . . . . . . Secondary 3 | . . . . . . 1 . . 2 . . . . . . . . . . . Self-Inflicted Damage 278 | . . . . 13 . . 5 103 157 . . . . . . . . . . . Shots 11 | . . . . 1 . . 1 4 5 . . . . . . . . . . . Rammed 7 | . . . . . . . . . . . . . . . 2 3 2 . . . Targets Rammed 9 | . . . . . . . 1 . . . . . . . 2 3 3 . . . Kicked 1 | . . . . . . . 1 . . . . . . . . . . . . . Crushed 1 | . . . . . . . . . . . . . . . . . 1 . . . Highest Temperature 414 | 124 252 . . 261 84 361 36 280 246 414 281 99 . 116 209 255 270 261 261 273 Average Temperature 77 | 60 57 . . 73 33 96 12 63 42 89 63 32 . 57 95 122 100 104 120 137 Received Heat Transfer 3885 | . 51 99 . 99 . 716 405 585 1065 261 81 249 . . . 85 93 9 . 87 Effects 12 | . 1 . . . . 5 . . . 1 . . . . 1 . . . 4 . Shutdowns 1 | . . . . . . 1 . . . . . . . . . . . . . . Energy Bleed 5 | . 1 . . . . . . . . 1 . . . . 1 . . . 2 . Interference 5 | . . . . . . 3 . . . . . . . . . . . . 2 . Short Circuit 1 | . . . . . . 1 . . . . . . . . . . . . . . Siege Activations . | . . . . . . . . . . . . . . . . . . . . . Martial Activations . | . . . . . . . . . . . . . . . . . . . . . Shielding Activations . | . . . . . . . . . . . . . . . . . . . . . Robots Disrupted . | . . . . . . . . . . . . . . . . . . . . . Combat Hostiles . | . . . . . . . . . . . . . . . . . . . . . Robots Corrupted 1 | . . . . . . . . . 1 . . . . . . . . . . . Combat Hostiles 1 | . . . . . . . . . 1 . . . . . . . . . . . Parts Fried 7 | . . . . . . . 1 2 3 . 1 . . . . . . . . . Impact Corruptions . | . . . . . . . . . . . . . . . . . . . . . Robots Melted 1 | . . . . 1 . . . . . . . . . . . . . . . . Combat Hostiles 1 | . . . . 1 . . . . . . . . . . . . . . . . Parts Melted 19 | . 1 . . 2 . 6 2 . 1 2 5 . . . . . . . . . Heat Transferred 14223 | 185 1297 753 . 198 37 3589 903 . 1863 4200 1000 198 . . . . . . . . Parts Sabotaged 4 | . . . . . . . . . . . . . . . . . . . . 4 Parts Stolen . | . . . . . . . . . . . . . . . . . . . . . Parts Stripped . | . . . . . . . . . . . . . . . . . . . . . Power Chain Reactions 9 | . 2 . . 1 . . 1 1 4 . . . . . . . . . . . Alert | -11 -10 -10 -8 -8 -8 -8 -8 -8 -7 -7 -6 -6 -5 -5 -5 -5 -5 -5 -5 -5 ------- Run | Yrd Mat Sub Mat Gar Mat Gar Mat Gar Fac Gar Fac Gar Fac Was Fac Gar Fac Upp Upp War Maximum Alert Level 4 | . . . . 3 1 4 3 4 3 4 3 4 3 1 . 2 4 . . . Low Security (%) 25 | 100 100 . 100 15 . 1 . . . . 59 6 . 84 100 34 8 . . . Level 1 11 | . . . . 48 100 19 . . . . 1 32 . 15 . 6 23 . . . Level 2 22 | . . . . 32 . 24 10 15 74 3 28 8 24 . . 59 17 . . . Level 3 27 | . . . . 3 . 34 89 62 25 38 10 26 75 . . . 31 . . . Level 4 12 | . . . . . . 19 . 22 . 57 . 25 . . . . 19 . . . Level 5 . | . . . . . . . . . . . . . . . . . . . . . High Security . | . . . . . . . . . . . . . . . . . . . . . Max Security . | . . . . . . . . . . . . . . . . . . . . . Peak Influence 1467 | 5 159 . 9 704 351 1161 1036 1287 918 1446 758 1467 955 286 47 556 1306 . . . Initial 770 | . . . . . 343 163 565 673 675 609 758 108 770 286 . 11 291 . . . Average 563 | 1 63 . . 367 301 719 747 921 636 1088 324 758 775 125 7 339 662 . . . Influence Increases 12995 | 15 526 70 9 784 18 1238 1015 864 1034 977 561 1579 663 . 170 805 1856 527 284 . Destroy 0b10 Robot/C 6960 | . 240 60 . 320 . 740 600 500 620 460 340 760 180 . 80 580 900 420 160 . Destroy 0b10 Robot/NC 325 | 15 35 . . . 5 10 45 . 65 35 20 . 25 . . . 70 . . . Destroy Leader 934 | . 56 10 . . 2 30 186 20 140 20 96 40 58 . 20 60 166 10 20 . Allied During Kill 1608 | . . . . 32 1 44 62 11 1 9 52 338 249 . 34 165 409 97 104 . Successful Hack 175 | . 20 . 9 37 8 28 21 . 10 28 . . . . 6 . 8 . . . Disable Machine 555 | . . . . . . . 60 30 120 15 45 30 90 . . . 165 . . . Anti-Garrison Action 1350 | . . . . 300 . 300 . 150 . 250 . 350 . . . . . . . . Destroy Structure 518 | . 10 . . 80 2 56 41 93 18 55 8 31 46 . . . 78 . . . Partial Spotted 15 | . . . . . . . . . 15 . . . . . . . . . . . Lose Combat Pursuer 555 | . 165 . . 15 . 30 . 60 45 105 . 30 15 . 30 . 60 . . . Influence Decreases 12995 | 15 497 99 9 80 471 328 1140 613 1450 402 1852 267 1312 818 153 266 1109 721 735 658 Entered New Map 5884 | . . 15 . . 361 88 596 363 612 262 688 47 697 532 . 6 265 483 211 658 Time Decay 4141 | 15 497 84 9 . 110 . 464 . 598 . 529 . 270 186 133 . 604 238 404 . Lost Part 590 | . . . . 20 . 140 10 150 160 40 30 40 . . . . . . . . Lost Ally 1580 | . . . . 60 . 100 70 100 80 100 80 180 70 100 20 260 240 . 120 . Purge Threat 800 | . . . . . . . . . . . 525 . 275 . . . . . . . Squads Dispatched 51 | . 2 . 1 . 2 . 10 . 12 . 8 . 3 . 1 . 12 . . . Investigation 7 | . 1 . 1 . 1 . 3 . . . 1 . . . . . . . . . Extermination 13 | . . . . . . . . . 4 . 3 . 1 . 1 . 4 . . . Reinforcement 18 | . 1 . . . 1 . 5 . 2 . 4 . 2 . . . 3 . . . Assault 7 | . . . . . . . . . 3 . . . . . . . 4 . . . Garrison 6 | . . . . . . . 2 . 3 . . . . . . . 1 . . . Intercept . | . . . . . . . . . . . . . . . . . . . . . Searches Triggered . | . . . . . . . . . . . . . . . . . . . . . Construction Impeded 4 | . . . . . . . 2 . . . . . 1 . . . 1 . . . Haulers Reinforced 2 | . . . . . . . . . 1 . 1 . . . . . . . . . Active Scanning Responses . | . . . . . . . . . . . . . . . . . . . . . Cargo Convoy Interrupts . | . . . . . . . . . . . . . . . . . . . . . Stealth | -11 -10 -10 -8 -8 -8 -8 -8 -8 -7 -7 -6 -6 -5 -5 -5 -5 -5 -5 -5 -5 --------- Run | Yrd Mat Sub Mat Gar Mat Gar Mat Gar Fac Gar Fac Gar Fac Was Fac Gar Fac Upp Upp War Distress Signals 13 | . 4 . . . . . . . 3 . . . 3 . . . 3 . . . Communications Jammed 10 | . . . . . . . . . 2 . 8 . . . . . . . . . Distress Signals 7 | . . . . . . . . . 2 . 5 . . . . . . . . . Times Spotted 503 | . 30 8 4 20 1 44 46 28 59 34 26 49 10 5 6 34 58 15 8 18 Peak Tracking Total 14 | . 4 3 4 3 1 9 7 4 9 8 4 8 3 2 3 6 5 7 5 14 Tactical Retreats 25 | . 8 . . 1 . 1 . 3 2 4 . 2 1 . 1 . 2 . . . Traps | -11 -10 -10 -8 -8 -8 -8 -8 -8 -7 -7 -6 -6 -5 -5 -5 -5 -5 -5 -5 -5 ------- Run | Yrd Mat Sub Mat Gar Mat Gar Mat Gar Fac Gar Fac Gar Fac Was Fac Gar Fac Upp Upp War Traps Triggered 52 | . 1 . 1 4 . 9 5 8 1 3 3 4 1 . 1 8 1 . . 2 Indirectly 4 | . . . . . . . 4 . . . . . . . . . . . . . Trap Hack Attempts . | . . . . . . . . . . . . . . . . . . . . . Triggered . | . . . . . . . . . . . . . . . . . . . . . Disarmed . | . . . . . . . . . . . . . . . . . . . . . Reprogrammed . | . . . . . . . . . . . . . . . . . . . . . Reused . | . . . . . . . . . . . . . . . . . . . . . Traps Extracted . | . . . . . . . . . . . . . . . . . . . . . Installed . | . . . . . . . . . . . . . . . . . . . . . Triggered . | . . . . . . . . . . . . . . . . . . . . . Most Traps Carried 1 | . . 1 1 1 1 1 . . . . . . . . . . . . . . Machines | -11 -10 -10 -8 -8 -8 -8 -8 -8 -7 -7 -6 -6 -5 -5 -5 -5 -5 -5 -5 -5 ---------- Run | Yrd Mat Sub Mat Gar Mat Gar Mat Gar Fac Gar Fac Gar Fac Was Fac Gar Fac Upp Upp War Machines Disabled 53 | . . 1 . . . 4 4 3 8 4 3 8 6 . . 1 11 . . . Max in Single Turn 2 | . . 1 . . . 1 2 1 2 1 1 1 . . . . . . . . Garrison Access 1 | . . . . . . . . . . . . . . . . . 1 . . . Garrison Relay 14 | . . . . 1 . 4 . 1 . 3 . 5 . . . . . . . . Machines Repaired . | . . . . . . . . . . . . . . . . . . . . . Machines Dismantled 2 | . . . . . . . . . 1 . . 1 . . . . . . . . Machines Sabotaged . | . . . . . . . . . . . . . . . . . . . . . Overloaded Fab Kills . | . . . . . . . . . . . . . . . . . . . . . Hacking | -11 -10 -10 -8 -8 -8 -8 -8 -8 -7 -7 -6 -6 -5 -5 -5 -5 -5 -5 -5 -5 --------- Run | Yrd Mat Sub Mat Gar Mat Gar Mat Gar Fac Gar Fac Gar Fac Was Fac Gar Fac Upp Upp War Machines Accessed 52 | . 7 1 3 4 1 4 8 . 4 3 8 2 1 . 2 2 2 . . . Terminals 38 | . 6 . 2 4 . 4 5 . 2 3 5 2 1 . 1 2 1 . . . Fabricators . | . . . . . . . . . . . . . . . . . . . . . Repair Stations 1 | . . . . . . . 1 . . . . . . . . . . . . . Recycling Units 4 | . 1 . . . . . . . 1 . 2 . . . . . . . . . Scanalyzers 1 | . . . . . . . 1 . . . . . . . . . . . . . Garrison Access 7 | . . . 1 . 1 . 1 . 1 . 1 . . . 1 . 1 . . . Total Hacks 121 | . 21 1 9 4 4 5 26 . 15 4 15 3 2 . 6 3 3 . . . Successful 55 | . 15 1 4 3 2 2 11 . 7 2 4 . . . 2 . 2 . . . Failed 66 | . 6 . 5 1 2 3 15 . 8 2 11 3 2 . 4 3 1 . . . Catastrophic 10 | . . . . 1 . 1 1 . 1 2 2 1 . . . . 1 . . . Database Lockouts . | . . . . . . . . . . . . . . . . . . . . . Manual 50 | . 15 . 6 . 3 . 5 . 9 . 7 . . . 4 . 1 . . . Terminals 87 | . 19 . 7 4 . 5 16 . 12 4 9 3 2 . 2 3 1 . . . Fabricators . | . . . . . . . . . . . . . . . . . . . . . Repair Stations 3 | . . . . . . . 3 . . . . . . . . . . . . . Recycling Units 7 | . 2 . . . . . . . 1 . 4 . . . . . . . . . Scanalyzers 5 | . . . . . . . 5 . . . . . . . . . . . . . Garrison Access 18 | . . . 2 . 4 . 2 . 2 . 2 . . . 4 . 2 . . . Terminal Hacks 26 | . 7 1 1 3 . 2 4 . 4 2 1 . . . . . 1 . . . Record 1 | . 1 . . . . . . . . . . . . . . . . . . . Part Schematic 2 | . 1 . . . . . . . 1 . . . . . . . . . . . Robot Analysis 3 | . 1 . . . . . 1 . 1 . . . . . . . . . . . Prototype ID Bank 6 | . 3 . 1 . . . 1 . 1 . . . . . . . . . . . Open Door 1 | . . . . 1 . . . . . . . . . . . . . . . . Branch Access Points 1 | . . . . . . . . . . . . . . . . . 1 . . . Emergency Access Points 3 | . . . . 1 . 1 . . . 1 . . . . . . . . . . Unreport Threat 1 | . . . . . . . . . . . 1 . . . . . . . . . Locate Traps 2 | . 1 . . . . . 1 . . . . . . . . . . . . . Transport Status 1 | . . . . . . . . . 1 . . . . . . . . . . . Zone Layout 1 | . . . . . . . 1 . . . . . . . . . . . . . Patrol Navigation 2 | . . . . . . 1 . . . 1 . . . . . . . . . . Security Stations 1 | . . . . 1 . . . . . . . . . . . . . . . . Proto ID Catalog 1 | . . 1 . . . . . . . . . . . . . . . . . . Fabricator Hacks . | . . . . . . . . . . . . . . . . . . . . . Repair Station Hacks 1 | . . . . . . . 1 . . . . . . . . . . . . . Scan Component 1 | . . . . . . . 1 . . . . . . . . . . . . . Recycling Unit Hacks 2 | . 1 . . . . . . . . . 1 . . . . . . . . . Retrieve Components 2 | . 1 . . . . . . . . . 1 . . . . . . . . . Scanalyzer 3 | . . . . . . . 3 . . . . . . . . . . . . . Retrieve Study 3 | . . . . . . . 3 . . . . . . . . . . . . . Garrison Access Hacks 7 | . . . 1 . 1 . 1 . 1 . 1 . . . 1 . 1 . . . Unlock Access 7 | . . . 1 . 1 . 1 . 1 . 1 . . . 1 . 1 . . . Unauthorized Hacks 16 | . 7 . 2 . 1 . 2 . 2 . 1 . . . 1 . . . . . Terminals 13 | . 7 . 2 . . . 1 . 1 . 1 . . . 1 . . . . . Botnet 7 | . 2 . 1 . . . 1 . 1 . 1 . . . 1 . . . . . Skim 6 | . 5 . 1 . . . . . . . . . . . . . . . . . Fabricators . | . . . . . . . . . . . . . . . . . . . . . Repair Stations . | . . . . . . . . . . . . . . . . . . . . . Recycling Units . | . . . . . . . . . . . . . . . . . . . . . Scanalyzers . | . . . . . . . . . . . . . . . . . . . . . Garrison Access 3 | . . . . . 1 . 1 . 1 . . . . . . . . . . . Reprogram 3 | . . . . . 1 . 1 . 1 . . . . . . . . . . . Data Cores Recovered 1 | . . . . . . . 1 . . . . . . . . . . . . . Used . | . . . . . . . . . . . . . . . . . . . . . Hacking Detections 44 | . 7 . 3 3 . 3 7 . 4 2 7 2 1 . 2 2 1 . . . Full Trace Events 1 | . . . . . . . . . . . 1 . . . . . . . . . Feedback Events . | . . . . . . . . . . . . . . . . . . . . . Feedback Blocked . | . . . . . . . . . . . . . . . . . . . . . Robot Schematics Acquired . | . . . . . . . . . . . . . . . . . . . . . Robots Built . | . . . . . . . . . . . . . . . . . . . . . Authchips . | . . . . . . . . . . . . . . . . . . . . . Time . | . . . . . . . . . . . . . . . . . . . . . Total Robot Build Rating . | . . . . . . . . . . . . . . . . . . . . . Part Schematics Acquired 2 | . 1 . . . . . . . 1 . . . . . . . . . . . Parts Built . | . . . . . . . . . . . . . . . . . . . . . Authchips . | . . . . . . . . . . . . . . . . . . . . . Time . | . . . . . . . . . . . . . . . . . . . . . Total Part Build Rating . | . . . . . . . . . . . . . . . . . . . . . Part Studies Acquired 3 | . . . . . . . 3 . . . . . . . . . . . . . Parts Repaired . | . . . . . . . . . . . . . . . . . . . . . Time . | . . . . . . . . . . . . . . . . . . . . . Parts Recycled . | . . . . . . . . . . . . . . . . . . . . . Recycled Matter . | . . . . . . . . . . . . . . . . . . . . . Retrieved Matter . | . . . . . . . . . . . . . . . . . . . . . Retrieved Components 11 | . 9 . . . . . . . . . 2 . . . . . . . . . Parts Scanalyzed . | . . . . . . . . . . . . . . . . . . . . . Part Schematics Acquired . | . . . . . . . . . . . . . . . . . . . . . Parts Damaged . | . . . . . . . . . . . . . . . . . . . . . Bothacking | -11 -10 -10 -8 -8 -8 -8 -8 -8 -7 -7 -6 -6 -5 -5 -5 -5 -5 -5 -5 -5 ------------ Run | Yrd Mat Sub Mat Gar Mat Gar Mat Gar Fac Gar Fac Gar Fac Was Fac Gar Fac Upp Upp War Used RIF Installer 6 | . . . . 1 . 1 . . . 1 . 1 . . . 2 . . . . Coupler Efficiency 1 | . . . . . . 1 . . . . . . . . . . . . . . Signal Jammer 1 | . . . . . . . . . . . . . . . . 1 . . . . Structural Interface 1 | . . . . . . . . . . 1 . . . . . . . . . . Autooverride 1 | . . . . . . . . . . . . 1 . . . . . . . . Autoassimilate 1 | . . . . . . . . . . . . . . . . 1 . . . . Robots Hacked 54 | . . . . . . 3 3 1 15 6 6 9 6 . . 5 . . . . Non-combat 21 | . . . . . . 2 1 . 11 . 2 . 5 . . . . . . . Combat 33 | . . . . . . 1 2 1 4 6 4 9 1 . . 5 . . . . Autooverrided 1 | . . . . . . . . . . . . . . . . 1 . . . . Robot Hacks Applied 69 | . . . . . . 4 3 1 21 6 9 12 9 . . 4 . . . . parse_system 1 | . . . . . . . . . . . . 1 . . . . . . . . no_distress 17 | . . . . . . . . . 12 . 1 . 4 . . . . . . . find_chute 3 | . . . . . . . . . 3 . . . . . . . . . . . map_walls 2 | . . . . . . . . . 2 . . . . . . . . . . . deconstruct_bot 1 | . . . . . . 1 . . . . . . . . . . . . . . purge_threat 5 | . . . . . . . . . . . 3 . 2 . . . . . . . disarm_traps 1 | . . . . . . . . . . . 1 . . . . . . . . . block_reporting 1 | . . . . . . . . . . . . . 1 . . . . . . . reboot_system 2 | . . . . . . . . . . . . 1 . . . 1 . . . . go_dormant 1 | . . . . . . . . . . . . . . . . 1 . . . . overwrite_iff 9 | . . . . . . . . . 3 . . 6 . . . . . . . . formatsys_low 4 | . . . . . . 2 1 . . . . . 1 . . . . . . . formatsys_high 22 | . . . . . . 1 2 1 1 6 4 4 1 . . 2 . . . . Relay Couplers Released 63 | . . . . 3 . 13 . 5 . 15 . 18 . . . 3 6 . . . Machine Destruction 53 | . . . . 3 . 13 . 5 . 12 . 18 . . . . 2 . . . Programmers 10 | . . . . . . . . . . 3 . . . . . 3 4 . . . Attached 25 | . . . . . . 2 3 . 3 4 4 6 1 . . 2 . . . . Fabnet Peak Effective % . | . . . . . . . . . . . . . . . . . . . . . Robots Rewired 20 | . . . . 5 . 2 . . . . . 10 . . . . . 2 1 . Allies Hacked 5 | . . . . . . . . 1 . . . . . . 1 1 2 . . . Hacks Repelled 2 | . . . . . . . . . . . . . . . . . 2 . . . Allies | -11 -10 -10 -8 -8 -8 -8 -8 -8 -7 -7 -6 -6 -5 -5 -5 -5 -5 -5 -5 -5 -------- Run | Yrd Mat Sub Mat Gar Mat Gar Mat Gar Fac Gar Fac Gar Fac Was Fac Gar Fac Upp Upp War Total Allies 62 | . . . . 5 3 5 4 2 4 6 4 21 2 . . 3 . 2 1 . Largest Group 13 | . . . . 4 5 5 4 4 1 3 4 11 13 3 . 2 . 2 3 . Highest-Rated Group 628 | . . . . 98 97 97 136 151 20 56 119 561 628 167 . 82 . 59 88 . Highest-Rated Ally 119 | . . . . 31 31 34 90 90 20 24 32 119 119 119 . 41 . 30 30 . Total Orders 10 | . . . . . . . 2 . . . 6 . . . . . 2 . . . STAY 1 | . . . . . . . . . . . . . . . . . 1 . . . ROAM 3 | . . . . . . . . . . . 3 . . . . . . . . . FOLLOW 4 | . . . . . . . . . . . 3 . . . . . 1 . . . AID 2 | . . . . . . . 2 . . . . . . . . . . . . . Ally Attacks 864 | . . . . 29 1 29 37 12 10 20 44 96 53 44 17 113 221 65 53 20 Total Damage 27762 | . . . . 723 . 434 1473 324 139 172 915 3010 2078 1621 488 4007 8821 1728 1299 530 Kills 203 | . . . . 6 . 5 14 5 1 2 3 19 15 5 4 29 64 21 8 2 Allies Corrupted 6 | . . . . . . . . . . . . . . 1 1 1 1 . . 2 Allies Melted . | . . . . . . . . . . . . . . . . . . . . . Borg Created 40 | . . . . . . . . . . . . . . . 4 10 18 3 2 3 Largest Collective 6 | . . . . . . . . . . . . . . . 4 5 6 5 6 2 Intel | -11 -10 -10 -8 -8 -8 -8 -8 -8 -7 -7 -6 -6 -5 -5 -5 -5 -5 -5 -5 -5 ------- Run | Yrd Mat Sub Mat Gar Mat Gar Mat Gar Fac Gar Fac Gar Fac Was Fac Gar Fac Upp Upp War Active Infowar (turns) 11635 | . . 63 . . . . . . 1027 1698 1706 253 539 381 933 1173 1959 509 961 433 Sensors 8598 | . . . . . . . . . 612 . 1098 . 539 381 933 1173 1959 509 961 433 Terrain 63 | . . 63 . . . . . . . . . . . . . . . . . . Jamming 4960 | . . . . . . . . . 415 1698 1700 253 . . 553 341 . . . . Robot Analysis Total 3 | . 1 . . . . . 1 . 1 . . . . . . . . . . . Derelict Logs Recovered 2 | . . 1 . . . . . . . . . . . . . . . . 1 . Drone Launches . | . . . . . . . . . . . . . . . . . . . . . Drone Recoveries . | . . . . . . . . . . . . . . . . . . . . . Exploration | -11 -10 -10 -8 -8 -8 -8 -8 -8 -7 -7 -6 -6 -5 -5 -5 -5 -5 -5 -5 -5 ------------- Run | Yrd Mat Sub Mat Gar Mat Gar Mat Gar Fac Gar Fac Gar Fac Was Fac Gar Fac Upp Upp War Turns Passed 22149 | 165 1546 964 110 1230 237 1620 1165 1439 1909 1698 1716 1348 587 381 933 1173 1959 509 976 484 Spaces Moved 11969 | 80 613 353 63 772 165 1010 818 646 907 846 963 777 323 228 521 650 1126 272 561 275 Core 5 | 3 . . . . . . . 1 . . . . . . . . . . . 1 Treads 7064 | 77 613 353 63 421 . . . 179 286 634 609 . 197 228 521 650 1126 272 561 274 Legs 4142 | . . . . 351 165 1010 818 45 284 212 354 777 126 . . . . . . . Wheels 337 | . . . . . . . . . 337 . . . . . . . . . . . Hover 421 | . . . . . . . . 421 . . . . . . . . . . . . Flight . | . . . . . . . . . . . . . . . . . . . . . Fastest Speed 50 | 50 160 240 160 112 114 97 101 105 95 117 115 112 116 160 160 160 160 163 163 50 Average Speed 147 | 155 166 240 160 139 114 109 111 172 129 149 143 117 163 160 160 160 161 163 163 164 Slowest Speed 950 | 160 240 240 160 186 114 187 185 950 252 190 160 191 193 160 160 160 240 163 163 320 Overloaded Moves . | . . . . . . . . . . . . . . . . . . . . . Propulsion Burnouts . | . . . . . . . . . . . . . . . . . . . . . Robots Hopped . | . . . . . . . . . . . . . . . . . . . . . Potential Cave-ins . | . . . . . . . . . . . . . . . . . . . . . Cave-ins Triggered . | . . . . . . . . . . . . . . . . . . . . . Exploration Rate (%) 47 | 5 85 18 7 92 12 85 76 58 24 89 26 96 13 66 10 80 31 48 61 24 Regions Visited 20 Branch Regions 4 Pre-discovered Areas 5 | . 4 . . . . . . . . . . . . . . . . . 1 . Known Exits Taken 10 | . 1 . 1 . 1 . 1 . 1 . 1 . . . 1 . 1 1 1 . Unknown Exits Taken 2 | 1 . 1 . . . . . . . . . . . . . . . . . . Scrap Searched 9 | . . 6 . . . . . . . . . . . . . . . 1 2 . Spaces Dug 19 | . . . . . . . 16 . 3 . . . . . . . . . . . Terrain Destroyed 127 | . 13 . . . 2 11 25 48 19 2 6 1 . . . . . . . . Melee . | . . . . . . . . . . . . . . . . . . . . . Projectile 15 | . . . . . 2 . . . 4 2 6 1 . . . . . . . . AOE 112 | . 13 . . . . 11 25 48 15 . . . . . . . . . . . Terrain Rammed . | . . . . . . . . . . . . . . . . . . . . . Walls Destroyed . | . . . . . . . . . . . . . . . . . . . . . Machines Disabled . | . . . . . . . . . . . . . . . . . . . . . Actions | -11 -10 -10 -8 -8 -8 -8 -8 -8 -7 -7 -6 -6 -5 -5 -5 -5 -5 -5 -5 -5 --------- Run | Yrd Mat Sub Mat Gar Mat Gar Mat Gar Fac Gar Fac Gar Fac Was Fac Gar Fac Upp Upp War Total 15133 | 98 1038 411 73 860 213 1360 969 854 1397 1080 1207 1092 381 244 612 759 1233 332 620 300 Wait 1343 | . 334 . . 5 32 128 38 32 227 42 110 70 16 11 72 62 66 35 48 15 Move 11950 | 79 612 352 62 771 164 1009 817 645 906 845 962 776 323 227 520 649 1125 271 560 275 Hop . | . . . . . . . . . . . . . . . . . . . . . Pick Up 157 | 4 17 9 2 4 6 16 5 8 19 11 15 8 1 1 7 14 6 . 3 1 Fast Attach 123 | 5 2 2 3 6 1 13 7 11 30 11 11 8 5 3 . 1 3 . . 1 Attach 87 | . 2 8 2 3 . 13 5 8 13 5 8 9 5 . 2 1 1 . . 2 Detach 17 | . 1 1 . . 1 3 3 . 3 . . 5 . . . . . . . . Swap 173 | . 6 5 . 2 . 22 16 8 30 21 24 23 5 . . 5 3 . 2 1 Drop 185 | . 10 1 4 7 7 22 14 5 23 18 21 22 12 2 2 5 8 . 2 . Fire 765 | 10 54 33 . 41 2 96 53 60 130 127 56 83 14 . . 6 . . . . Melee 27 | . . . . . . 6 9 . 12 . . . . . . . . . . . Ram 1 | . . . . . . . . . . . . . . . . 1 . . . . Kick 1 | . . . . . . . 1 . . . . . . . . . . . . . Crush 8 | . . . . . . . . . . . . . . . 2 3 3 . . . Escape Stasis 114 | . . . . . . 27 . 77 . . . 10 . . . . . . . . Rewire 130 | . . . . 21 . 5 1 . . . . 70 . . 3 2 . 23 3 2 Trap . | . . . . . . . . . . . . . . . . . . . . . Miscellaneous 52 | . . . . . . . . . 4 . . 8 . . 4 10 18 3 2 3 Route ------- -11/Scrapyard -10/Materials (discovered 5 exits: *Mat x3 / [*Min] / *Sub) -10/Subcaves (discovered 2 exits: *Mat / [*Scr]) -8/Materials (discovered 2 exits: Fac / Gar) -8/Garrison (discovered 3 exits: *Mat x3) -8/Materials -8/Garrison (discovered 4 exits: *Fac x3 / *Mat) -8/Materials (discovered 4 exits: *Fac x2 / [*Sto] / Gar) -8/Garrison (discovered 2 exits: *Fac x2) -7/Factory (discovered 3 exits: *Fac / [*Low] / Gar) -7/Garrison (discovered 3 exits: *Fac x3) -6/Factory (discovered 3 exits: *Fac / [*Low] / Gar) -6/Garrison (discovered 3 exits: *Fac x3) -5/Factory -5/Waste -5/Factory (discovered 2 exits: *Upp / Gar) -5/Garrison (discovered 2 exits: *Fac x2) -5/Factory (discovered 5 exits: *Fac x2 / *Upp x2 / Gar) -5/Upper Caves -5/Upper Caves -5/Warlord (discovered 1 exit: [*Pro]) History --------- Turn | Location | Event 12 | -11/Scrapyard | Discovered new exit (range 15) 166 | -11/Scrapyard | Entered Materials 316 | -10/Materials | Build established: Mutant 369 | -10/Materials | Discovered new exit (range 9) 767 | -10/Materials | Discovered new exit (range 15) 1052 | -10/Materials | Discovered new exit (range 6) 1148 | -10/Materials | Identified exit to Subcaves 1148 | -10/Materials | Identified exit to Materials 1193 | -10/Materials | Learned Storage garrison access intel 1226 | -10/Materials | Learned location of Mines (-10) 1248 | -10/Materials | Learned location of Mines (-9) 1262 | -10/Materials | Learned Storage trap positions 1264 | -10/Materials | Learned Storage emergency access door positions 1266 | -10/Materials | Loaded intel: 25 trap records 1712 | -10/Materials | Entered Subcaves 1713 | -10/Subcaves | Approached by a straggling Scientist 1719 | -10/Subcaves | Scientist uncovered a shortcut to Scraptown 1753 | -10/Subcaves | Learned location of 1 exit from Materials 2112 | -10/Subcaves | A Subdweller sparked back to life 2112 | -10/Subcaves | A Subdweller sparked back to life 2161 | -10/Subcaves | Core integrity fell below 50% 2182 | -10/Subcaves | Lost 6 parts (1p3n2w) 2209 | -10/Subcaves | Found Prototype Processor 2209 | -10/Subcaves | Identified Rainbow Chip 2210 | -10/Subcaves | Attached Rainbow Chip, gained temporary slots: Power, Propulsion, Utility, Weapon 2281 | -10/Subcaves | Discovered new exit (range 5) 2498 | -10/Subcaves | Visited 4L-MR0's lab 2519 | -10/Subcaves | Found Prototype Special Melee Weapon 2528 | -10/Subcaves | Found Prototype Power Core 2543 | -10/Subcaves | Identified Meta Core 2676 | -10/Subcaves | Entered Materials 2676 | -8/Materials | Evolved 4 slots: Propulsion x2, Utility x1, Weapon x1 2677 | -8/Materials | Identified exit to Factory 2751 | -8/Materials | Identified exit to Garrison 2786 | -8/Materials | Entered Garrison 2806 | -8/Garrison | Triggered checkpoint 2949 | -8/Garrison | Warlord forces raided the area 2980 | -8/Garrison | Learned Materials security intel 3002 | -8/Garrison | Triggered checkpoint 3004 | -8/Garrison | Build established: Tank 3012 | -8/Garrison | Triggered checkpoint 3063 | -8/Garrison | Triggered checkpoint 3096 | -8/Garrison | Triggered checkpoint 3201 | -8/Garrison | Discovered new exit (range 13) 3222 | -8/Garrison | Triggered checkpoint 3524 | -8/Garrison | Triggered checkpoint 3567 | -8/Garrison | Installed Relay Interface Framework 3644 | -8/Garrison | Triggered checkpoint 3757 | -8/Garrison | Discovered new exit (range 11) 3806 | -8/Garrison | Triggered checkpoint 3960 | -8/Garrison | Triggered checkpoint 4001 | -8/Garrison | Discovered new exit (range 11) 4016 | -8/Garrison | Entered Materials 4016 | -8/Materials | Accompanied by 2 allies 4025 | -8/Materials | Build established: Scavenger-Tank 4027 | -8/Materials | Identified exit to Garrison 4253 | -8/Materials | Entered Garrison 4253 | -8/Garrison | Accompanied by 5 allies 4271 | -8/Garrison | Triggered checkpoint 4324 | -8/Garrison | Lost 5 allies 4347 | -8/Garrison | Discovered new exit (range 5) 4379 | -8/Garrison | Triggered checkpoint 4457 | -8/Garrison | Garrison Relay disabled 4846 | -8/Garrison | Lost 6 parts (1p2n3u) 4955 | -8/Garrison | Triggered checkpoint 5002 | -8/Garrison | Garrison Relay disabled 5044 | -8/Garrison | Discovered exit to Factory (range 12) 5173 | -8/Garrison | Triggered checkpoint 5217 | -8/Garrison | Lost 3 parts (1n2w) 5217 | -8/Garrison | Garrison Relay disabled 5261 | -8/Garrison | Discovered exit to Factory (range 11) 5353 | -8/Garrison | Triggered checkpoint 5384 | -8/Garrison | Discovered exit to Factory (range 10) 5403 | -8/Garrison | Triggered checkpoint 5642 | -8/Garrison | Expanded RIF knowledge: Coupler Efficiency 5715 | -8/Garrison | Garrison Relay disabled 5807 | -8/Garrison | Build established: Bothacker-Mutant 5873 | -8/Garrison | Entered Materials 5873 | -8/Materials | Accompanied by 4 allies 6245 | -8/Materials | Core integrity fell below 50% 6324 | -8/Materials | Discovered new exit (range 11) 6456 | -8/Materials | Discovered exit to Factory (range 9) 6573 | -8/Materials | Discovered exit to Factory (range 3) 6938 | -8/Materials | Garrison activated, responded to threat 7036 | -8/Materials | Identified exit to Garrison 7038 | -8/Materials | Entered Garrison 7038 | -8/Garrison | Accompanied by 4 allies 7159 | -8/Garrison | Lost 4 allies 7246 | -8/Garrison | Triggered checkpoint 7380 | -8/Garrison | Triggered checkpoint 7457 | -8/Garrison | Door terminal overloaded 7459 | -8/Garrison | Rescued a captive Derelict 7560 | -8/Garrison | Triggered checkpoint 7662 | -8/Garrison | Triggered checkpoint 7705 | -8/Garrison | Build established: Scavenger-Tank 7735 | -8/Garrison | Garrison Relay disabled 7824 | -8/Garrison | Discovered exit to Factory (range 15) 8137 | -8/Garrison | Triggered checkpoint 8187 | -8/Garrison | Lost 5 parts (1p1n1u2w) 8302 | -8/Garrison | Discovered exit to Factory (range 12) 8393 | -8/Garrison | Core integrity fell below 20% 8423 | -8/Garrison | Build established: Bothacker-Mutant 8424 | -8/Garrison | System corruption reached 10% 8450 | -8/Garrison | Triggered checkpoint 8477 | -8/Garrison | Entered Factory 8477 | -7/Factory | Evolved 2 slots: Propulsion x1, Utility x1 8691 | -7/Factory | Discovered new exit (range 9) 8877 | -7/Factory | First assault squad dispatched 9227 | -7/Factory | Lost 3 parts (3n) 9633 | -7/Factory | Build established: Scavenger-Skirmisher 9762 | -7/Factory | Discovered new exit (range 13) 9849 | -7/Factory | Garrison activated, responded to threat 9881 | -7/Factory | Destroyed 8 combat bots 9978 | -7/Factory | Lost 9 parts (1p3n2u3w) 10113 | -7/Factory | Identified exit to Garrison 10356 | -7/Factory | Build established: Scavenger-Tank 10386 | -7/Factory | Entered Garrison 10417 | -7/Garrison | Triggered checkpoint 10453 | -7/Garrison | Garrison Relay disabled 10760 | -7/Garrison | Build established: Bothacker-Tank 10983 | -7/Garrison | Triggered checkpoint 11027 | -7/Garrison | Triggered checkpoint 11044 | -7/Garrison | Core integrity fell below 50% 11048 | -7/Garrison | Triggered checkpoint 11058 | -7/Garrison | Triggered checkpoint 11152 | -7/Garrison | System corruption reached 10% 11292 | -7/Garrison | Discovered new exit (range 12) 11313 | -7/Garrison | Garrison Relay disabled 11336 | -7/Garrison | Triggered checkpoint 11471 | -7/Garrison | Expanded RIF knowledge: Structural Interface 11712 | -7/Garrison | Lost 3 allies 11713 | -7/Garrison | Discovered new exit (range 12) 11955 | -7/Garrison | Discovered new exit (range 11) 11958 | -7/Garrison | Triggered checkpoint 11986 | -7/Garrison | Garrison Relay disabled 12084 | -7/Garrison | Entered Factory 12084 | -6/Factory | Accompanied by 1 ally 12084 | -6/Factory | Evolved 2 slots: Utility x2 12715 | -6/Factory | Build established: Bothacker-Skirmisher 12784 | -6/Factory | Spotted B-75 Beast 12876 | -6/Factory | Found Prototype Processor 12876 | -6/Factory | Identified Exp. Targeting Computer 12879 | -6/Factory | Found Exp. Targeting Computer 13233 | -6/Factory | Discovered new exit (range 9) 13651 | -6/Factory | Discovered new exit (range 4) 13785 | -6/Factory | Identified exit to Garrison 13800 | -6/Factory | Entered Garrison 13827 | -6/Garrison | Garrison Relay disabled 13878 | -6/Garrison | Triggered checkpoint 13981 | -6/Garrison | Rescued a captive Derelict 13982 | -6/Garrison | Rescued a captive Derelict 13997 | -6/Garrison | Garrison Relay disabled 14062 | -6/Garrison | Triggered checkpoint 14085 | -6/Garrison | Build established: Bothacker-Gunner 14106 | -6/Garrison | Lost 4 allies 14142 | -6/Garrison | Triggered checkpoint 14226 | -6/Garrison | Spotted Executioner 14226 | -6/Garrison | Spotted Executioner 14247 | -6/Garrison | Allies destroyed Executioner 14253 | -6/Garrison | Destroyed Executioner 14274 | -6/Garrison | Rewired Executioner 14298 | -6/Garrison | Rewired Executioner 14325 | -6/Garrison | Discovered new exit (range 12) 14326 | -6/Garrison | Triggered checkpoint 14347 | -6/Garrison | Garrison Relay disabled 14528 | -6/Garrison | Triggered checkpoint 14551 | -6/Garrison | Garrison Relay disabled 14624 | -6/Garrison | Discovered new exit (range 9) 14692 | -6/Garrison | Triggered checkpoint 14871 | -6/Garrison | Discovered new exit (range 10) 14916 | -6/Garrison | Triggered checkpoint 14919 | -6/Garrison | Lost 5 allies 14944 | -6/Garrison | Expanded RIF knowledge: Autooverride 14965 | -6/Garrison | Garrison Relay disabled 15148 | -6/Garrison | Entered Factory 15148 | -5/Factory | Accompanied by 11 allies 15148 | -5/Factory | Evolved 2 slots: Weapon x2 15191 | -5/Factory | Identified 1B-0RG's Assimilator 15198 | -5/Factory | Attached Meta Core, gained temporary slots: Propulsion, Utility, Weapon 15492 | -5/Factory | Build established: Commander-Mutant 15685 | -5/Factory | Lost 5 allies 15735 | -5/Factory | Sucked down chute 15735 | -5/Factory | Entered Waste 15747 | -5/Waste | Spotted C-40 Crusher 15748 | -5/Waste | Spotted C-40 Crusher 15750 | -5/Waste | EMP discharged 15750 | -5/Waste | System corruption reached 10% 15755 | -5/Waste | Spotted C-40 Crusher 15774 | -5/Waste | Allies destroyed C-40 Crusher 15786 | -5/Waste | Spotted C-40 Crusher 15797 | -5/Waste | Crushed by Compactor (0 parts destroyed, 2 dropped) 15810 | -5/Waste | Allies destroyed C-40 Crusher 15815 | -5/Waste | Allies destroyed C-40 Crusher 15816 | -5/Waste | Spotted C-40 Crusher 15819 | -5/Waste | Lost 3 allies 15820 | -5/Waste | Allies destroyed C-40 Crusher 15832 | -5/Waste | Found Prototype Device 15832 | -5/Waste | Identified Adv. Kinecellerator 15850 | -5/Waste | 6 allies followed down the chute 15850 | -5/Waste | EMP discharged 15876 | -5/Waste | Allies destroyed C-40 Crusher 15941 | -5/Waste | Spotted C-40 Crusher 15950 | -5/Waste | EMP discharged 16050 | -5/Waste | EMP discharged 16050 | -5/Waste | System corruption reached 30% 16092 | -5/Waste | Discovered new exit (range 16) 16102 | -5/Waste | Build established: Mutant 16115 | -5/Waste | Identified exit to Factory 16116 | -5/Waste | Entered Factory 16271 | -5/Factory | Assimilating Veteran 6a into Collective. 16300 | -5/Factory | Assimilating Soldier 6a into Collective. 16320 | -5/Factory | Assimilating Soldier 6b into Collective. 16510 | -5/Factory | Discovered new exit (range 10) 16540 | -5/Factory | Identified exit to Garrison 16635 | -5/Factory | Assimilating Sage 6a into Collective. 16748 | -5/Factory | Identified exit to Upper Caves 17049 | -5/Factory | Entered Garrison 17049 | -5/Garrison | Accompanied by 3 allies 17080 | -5/Garrison | Assimilating Virus 6a into Collective. 17104 | -5/Garrison | Lost 3 allies 17132 | -5/Garrison | Assimilating Sentinel 6a into Collective. 17137 | -5/Garrison | Triggered checkpoint 17222 | -5/Garrison | Assimilating Sentinel 6b into Collective. 17350 | -5/Garrison | Spotted B-75 Beast 17369 | -5/Garrison | Allies destroyed B-75 Beast 17373 | -5/Garrison | Triggered checkpoint 17379 | -5/Garrison | Triggered checkpoint 17383 | -5/Garrison | Triggered checkpoint 17400 | -5/Garrison | Assimilating Soldier 6c into Collective. 17405 | -5/Garrison | Assimilating Soldier 6d into Collective. 17419 | -5/Garrison | Assimilating Soldier 6e into Collective. 17444 | -5/Garrison | Lost 5 allies 17448 | -5/Garrison | Triggered checkpoint 17561 | -5/Garrison | Discovered new exit (range 13) 17583 | -5/Garrison | Assimilating Sentinel 6c into Collective. 17593 | -5/Garrison | Assimilating Sentinel 6d into Collective. 17608 | -5/Garrison | Expanded RIF knowledge: Signal Jamming 17628 | -5/Garrison | Assimilating Sentinel 6e into Collective. 17639 | -5/Garrison | Triggered checkpoint 17864 | -5/Garrison | Expanded RIF knowledge: Autoassimilate 17895 | -5/Garrison | Triggered checkpoint 18098 | -5/Garrison | Discovered new exit (range 4) 18130 | -5/Garrison | Assimilating Sentinel 6f into Collective. 18133 | -5/Garrison | Spotted B-75 Beast 18140 | -5/Garrison | Allies destroyed B-75 Beast 18160 | -5/Garrison | Found Relay Coupler [Proto] 18163 | -5/Garrison | Found Relay Coupler [Proto] 18166 | -5/Garrison | Found Relay Coupler [Proto] 18173 | -5/Garrison | Found Relay Coupler [Proto] 18214 | -5/Garrison | Identified exit to Factory 18222 | -5/Garrison | Entered Factory 18222 | -5/Factory | Accompanied by 3 allies 18269 | -5/Factory | Assimilating Administrator 6b into Collective. 18462 | -5/Factory | Allied Derelicts emerged from ambush trap array 18463 | -5/Factory | Build established: Botlord-Mutant 18556 | -5/Factory | Assimilating Soldier 6f into Collective. 18576 | -5/Factory | Assimilating Sage 6b into Collective. 18692 | -5/Factory | Allied Derelicts emerged from ambush trap array 18738 | -5/Factory | Assimilating Sage 6c into Collective. 18870 | -5/Factory | Lost 4 allies 18922 | -5/Factory | Assimilating Slayer 6d into Collective. 19034 | -5/Factory | Assimilating Processor 6a into Collective. 19307 | -5/Factory | Allied Derelicts emerged from ambush trap array 19391 | -5/Factory | P-70 Sage assimilated allied CY-TFO(g) 19406 | -5/Factory | Assimilating Slayer 6e into Collective. 19422 | -5/Factory | First assault squad dispatched 19448 | -5/Factory | Lost 5 allies 19461 | -5/Factory | Discovered new exit (range 16) 19548 | -5/Factory | Assimilating Soldier 6g into Collective. 19660 | -5/Factory | Assimilating Veteran 6b into Collective. 19673 | -5/Factory | Assimilating Warrior 6a into Collective. 19709 | -5/Factory | Assimilating Virus 6b into Collective. 19724 | -5/Factory | Lost 4 allies 19738 | -5/Factory | Assimilating Sage 6d into Collective. 19744 | -5/Factory | Assimilating Sage 6e into Collective. 19752 | -5/Factory | Assimilating Sage 6f into Collective. 19809 | -5/Factory | Assimilating Soldier 6h into Collective. 19894 | -5/Factory | Discovered new exit (range 8) 19905 | -5/Factory | Identified exit to Factory 20047 | -5/Factory | Identified exit to Garrison 20093 | -5/Factory | Assimilating Virus 6c into Collective. 20096 | -5/Factory | Assimilating Virus 6d into Collective. 20099 | -5/Factory | Assimilating Virus 6e into Collective. 20117 | -5/Factory | Garrison activated, responded to threat 20181 | -5/Factory | Entered Upper Caves 20181 | -5/Upper Caves | Accompanied by 2 allies 20410 | -5/Upper Caves | Assimilating Veteran 6c into Collective. 20497 | -5/Upper Caves | Attracted the attention of an 0b10 outpost 20498 | -5/Upper Caves | Assimilating Warden 6a into Collective. 20507 | -5/Upper Caves | Assimilating Warrior 6b into Collective. 20664 | -5/Upper Caves | Discovered new exit (range 6) 20670 | -5/Upper Caves | Identified exit to Upper Caves 20690 | -5/Upper Caves | Entered another Upper Caves area 20690 | -5/Upper Caves | Accompanied by 7 allies 20691 | -5/Upper Caves | Encountered a Warlord checkpoint 20699 | -5/Upper Caves | Assimilating PD-BJ3(M) into Collective. 20780 | -5/Upper Caves | Attracted the attention of an 0b10 outpost 20906 | -5/Upper Caves | Assimilating Slayer 6f into Collective. 21019 | -5/Upper Caves | Lost 3 allies 21383 | -5/Upper Caves | Spotted B-75 Beast 21398 | -5/Upper Caves | Core integrity fell below 50% 21410 | -5/Upper Caves | Allies destroyed B-75 Beast 21621 | -5/Upper Caves | Discovered new exit (range 11) 21639 | -5/Upper Caves | Identified exit to Warlord 21666 | -5/Upper Caves | Entered Warlord 21666 | -5/Warlord | Accompanied by 4 allies 21736 | -5/Warlord | Discovered new exit (range 13) 21744 | -5/Warlord | Lost 3 allies 21878 | -5/Warlord | System corruption cleaned by Quarantine Array 21883 | -5/Warlord | RIF detected upon attempting to enter Warlord's base 21883 | -5/Warlord | Attacked by Warlord forces 22010 | -5/Warlord | Spotted PF-QAO(B) 22010 | -5/Warlord | Spotted 2M-MYI(B) 22025 | -5/Warlord | Allies destroyed PF-QAO(B) 22039 | -5/Warlord | Allies destroyed 2M-MYI(B) 22060 | -5/Warlord | Assimilating G8-PO3(Y) into Collective. 22061 | -5/Warlord | Warlord's base attacked by MAIN.C 22079 | -5/Warlord | Assimilating V8-XZQ(M) into Collective. 22100 | -5/Warlord | Assimilating 5P-9EZ(Y) into Collective. 22141 | -5/Warlord | Core integrity fell below 20% 22150 | -5/Warlord | Released all parts (5) 22150 | -5/Warlord | Destroyed by D-63 Destroyer with Heavy Rocket Launcher Last Messages --------------- 22135_ Lyr. Medium Armor Plating blown off. 22135_ Arm. Medium Treads blown off. 22135_ E-15 Imp destroyed. 22135_ Identified Imp. Utility Shielding. 22135_ E-15 Imp destroyed. 22136_ Imp. Medium Armor Plating blown off. 22136_ Com. Matter Pod blown off. 22136_ E-15 Imp destroyed. 22136_ Acquired Lyr. Medium Armor Plating. 22139_ Lyr. Medium Armor Plating destroyed. 22141_ Acquired Imp. Medium Armor Plating. 22142_ Acquired 1 matter. 22144_ 1B-0RG's Assimilator destroyed. 22149_ Hvy. Treads destroyed. 22149_ Knocked back. 22150_ Released Imp. Utility Shielding. 22150_ Released Huge Storage Unit. 22150_ Released Exp. Targeting Computer. 22150_ Released Adv. Signal Interpreter. 22150_ Released Meta Core. Map ----- +----------------------------------------------------+ | ?????????????????????????????????????????????????? | | ?????????????????????????????????????????????????? | | ?????????????????????????????????????##??????????? | | ????????????????????????????????????## ?????????? | | ???????????????????????????????????## ?????????# | | ???????????????????????????????????# ????????## | | ???????????????????????????????????# #??????## | | ???????????????????????????????????# ??????# | | ???????????????????????????????????? ^ #?????# | | ????????????????????????????????????? ?????# | | ??????????????????????????????????????#^ ##???## | | ???????????????????????????????????????# #????## | | ????????????????????????????????????????# #?##### | | ????????????????????????????????????????# ###"# | | ?????????????? ????????????????????????# | | ??????????? ?#??????????????????????## """ | | ??????????? #???????"???????????????## " | | ??????????? #??????""????????????????##" " | | ???????????? #?????#""?????????????????#" | | ???????????? #?????#""######???????????#"" | | ?????????????# ####??#"" # ##??????????#### % | | ??????????#### ##"####"" #?????????????# | | ??????????# # ""* ###########????## % | | ??????????#%! # ""!| """"""""""#????# "" | | ###+#######= # ""!!! " "i """"#?#### # | | ^ !@!!* ! g ### ## | | *| ;^ ![!!* % b d ^+ | | =%! YY ^ !|!! / d + | | """" ! Y%!;^ ! /! g #### # | | # """" " ! M = ;% "" " """""""""#??## # | | # """" # ; "" """"""""""""#???# # | | # """" # # "" "############???# ## | | # ####*! #;#####""#####??????????????# #? | | # #??#%=%;#????#""#?????????????????? ## | | ###+###+###??#= #????#""#????????????????? ### | | ?????????????#%= ##????#""#????????????????# ##?# | | ???????????? "! #??????""????????????????? ???# | | ?????????? # ###????????????????????????# ???? | | ????????# # #??????????????????????????# #???? | | ????????# ?+ +??????????????????????????# ????? | | ????????# ?# #??????????????????????????? ????? | | ????????# ??# #??????????????????????????? ?????? | | ????????# ???# #?????????????????????????????????? | | ????????# ???# #?????????????????????????????????? | | ????????#????# ??????????????????????????????????? | | ????????????? ??????????????????????????????????? | | ????????????? ??????????????????????????????????? | | ????????????? ??????????????????????????????????? | | ????????????? ??????????????????????????????????? | | ?????????????? ??????????????????????????????????# | +----------------------------------------------------+ Best States ------------- Heat Dissipation 82 Energy Generation 25 Energy Capacity 455 Matter Stores 500 Matter Capacity 500 Sight Range 16 Robot Scan Range 15 Terrain Scan Range 16 Terrain Scan Density 10 Jamming Range 12 Additional Mass Support 12 Armor Coverage 450 Core Shielding 20 Utility Shielding 66 Evasion (%) 55 Targeting Accuracy 12 Recoil Reduction 6 Particle Charging 15 Offensive Hacking 10 Relay Coupler Types 3 Relay Coupler Value 96 Item Schematics ----------------- Lrg. Storage Unit | -10/Materials | Hacked Hyp. Gauss Cannon | -7/Factory | Hacked Robot Schematics ------------------ None Fabricated ------------ Nothing Repaired ---------- Nothing Studied --------- Shock Bomb Launcher | -8/Materials | Hacked Rocket Launcher | -8/Materials | Hacked Carbon-fiber Leg | -8/Materials | Hacked Alien Tech Used ----------------- None Achievements -------------- I, Locutus Challenges ------------ None Game ------ Seed ElectronArcMultitool Manual? 0 Play Time 03:36:27 Cumulative 553.0 hours Start 2026.02.21 @ 18:00:21 End 2026.02.23 @ 21:43:36 Sessions 6 Manual Loads 0 Difficulty Rogue Special Mode None Game No. 216 Rogue 143 Adventurer 68 Explorer 5 Win Type - Total 41 Types 22/3/4/5/3/0/1/1/0/2 Lore% 86 Gallery% 77 Achievement% 67 Wizard Run 0 Options --------- Layout 0 ASCII 0 Keyboard 0 Movement Numpad Keybinds 0 Fullscreen 1 Font 24/Smallcaps Map View 76x50 Zoom Use 0% Tactical HUD 1 Map Filters NONE Filters NONE Steam 1 RUN: 4d501e77-cc5e-43ad-ad8a-871820cc8413